bitfinex-derivatives/quotes_ETHF0:USTF0_20250810
["timestamp","ask_amount","ask_price","bid_price","bid_amount"]
[1754819387306,1.5174,4231.2,4231.1,1.5779]
[1754819387507,1.5174,4231.2,4231.1,0.9021]
[1754819387807,1.2516,4231.3,4231.2,1.5779]
[1754819388009,1.5174,4231.3,4230.9,0.47265]
[1754819388207,1.3365,4231.2,4231.1,0.4452]
[1754819388411,1.5174,4231.2,4231.1,0.7178]
[1754819388615,0.6065,4231.2,4231.0,0.2726]
[1754819388915,0.47261,4231.4,4231.0,1.5779]
[1754819388916,1.5174,4231.1,4231.0,1.5779]
[1754819389110,1.5174,4231.1,4231.0,1.1331]
[1754819389310,0.6065,4230.8,4230.7,1.3053]
[1754819389509,1.5174,4230.8,4230.7,1.3053]
[1754819389913,1.5174,4230.8,4230.7,1.5779]
[1754819390514,1.29068,4230.8,4230.4,3.2078]
[1754819390712,1.125,4230.8,4230.7,1.5779]
[1754819391013,0.4256,4230.8,4230.7,1.5779]
[1754819391212,1.72424,4231.1,4231.0,1.5779]
[1754819391515,0.8592,4231.1,4231.0,1.5779]
[1754819391918,1.2516,4231.1,4231.0,1.5779]
[1754819392818,1.20712182,4231.5,4231.4,0.6295]
[1754819393113,1.0791,4231.5,4231.4,0.9021]
[1754819393311,2.59062182,4231.5,4231.4,0.7178]
[1754819394420,2.59062182,4231.5,4231.4,0.2726]
[1754819394814,2.11802182,4231.5,4231.4,0.2726]
[1754819395018,2.11802182,4231.5,4231.4,0.447]
[1754819395522,2.11802182,4231.5,4231.4,1.3936]
[1754819396112,2.12154021,4231.5,4231.4,1.1331]
[1754819396625,1.85574021,4231.5,4231.4,0.9021]
[1754819396923,2.12154021,4231.5,4231.4,1.5779]
[1754819397222,1.85574021,4231.5,4231.4,1.5779]
[1754819397618,0.60414021,4231.5,4231.4,1.5779]
[1754819397816,0.00351839,4231.5,4231.4,1.5779]
[1754819398725,1.25511839,4231.5,4231.4,1.5779]
[1754819399717,0.47265,4231.0,4230.9,3.2078]
[1754819399924,0.6065,4230.6,4230.5,0.6295]
[1754819400225,0.8723,4230.6,4230.5,1.3053]
[1754819400425,0.8723,4230.6,4230.5,1.5779]
[1754819400617,1.5174,4230.6,4230.5,1.5779]
[1754819401522,30.8838,4230.6,4229.7,3.2078]
[1754819401825,0.8723,4228.9,4228.3,0.2726]
[1754819402130,1.5174,4228.8,4228.7,0.9021]
[1754819402716,0.60085776,4229.2,4228.6,0.1744]
[1754819402717,0.9109,4228.7,4228.6,0.1744]
[1754819402914,1.5174,4228.7,4228.6,1.5779]
[1754819403124,1.2516,4228.7,4228.6,1.5779]
[1754819404526,0.8592,4228.7,4228.6,1.5779]
[1754819404730,0.35,4229.0,4228.9,1.3174]
[1754819405021,3.2078,4229.4,4229.3,0.6295]
[1754819405224,3.8143,4229.4,4228.8,0.2726]
[1754819405425,1.5296,4228.9,4228.8,1.5881]
[1754819405724,1.2729,4228.9,4228.8,1.5881]
[1754819405924,3.2078,4229.4,4229.2,0.6445]
[1754819406131,0.3459,4229.3,4229.2,0.6445]
[1754819406330,1.2729,4229.3,4229.2,0.6445]
[1754819406629,1.5296,4229.3,4229.2,0.4494]
[1754819406825,3.68063,4229.4,4228.7,0.4729]
[1754819407029,1.5296,4228.8,4228.7,0.9097]
[1754819407826,1.2729,4228.8,4228.7,1.5807]
[1754819408023,4.2102,4229.4,4229.3,0.6445]
[1754819408230,4.4807,4229.4,4229.3,1.5807]
[1754819408622,3.2078,4229.4,4229.3,1.5807]
[1754819408921,4.2278,4229.4,4229.3,1.5807]
[1754819409122,4.4807,4229.4,4229.3,1.5807]
[1754819409524,0.6164,4228.7,4228.6,0.9097]
[1754819409830,1.2729,4228.7,4228.6,1.5807]
[1754819410433,0.6164,4228.7,4228.6,1.5807]
[1754819410632,0.8731,4228.7,4228.6,1.5807]
[1754819411034,1.5296,4228.7,4228.6,1.3276]
[1754819411331,1.2729,4228.7,4228.6,1.5807]
[1754819411525,3.2078,4228.9,4228.6,2.05361]
[1754819411733,1.02,4228.7,4228.6,2.05361]
[1754819411922,1.2729,4228.7,4228.6,2.05361]
[1754819412822,1.2729,4228.7,4228.6,1.5807]
[1754819413433,1.5296,4228.7,4228.6,1.5807]
[1754819413629,0.8693,4228.7,4228.2,3.2078]
[1754819413931,0.8693,4228.7,4227.0,1.18274]
[1754819413932,1.5296,4228.6,4228.5,0.1842]
[1754819414142,1.5296,4228.6,4228.5,0.7279]
[1754819414529,1.5296,4228.6,4228.5,0.9097]
[1754819414734,0.6164,4228.6,4228.5,1.3155]
[1754819415029,1.2729,4228.6,4228.5,1.0624]
[1754819415229,1.2729,4228.3,4228.2,1.1313]
[1754819415535,1.2729,4228.3,4228.2,1.5807]
[1754819416730,1.5296,4228.3,4228.2,1.5807]
[1754819417036,0.6164,4228.0,4227.9,1.3155]
[1754819417236,1.5296,4228.0,4227.9,1.3155]
[1754819417534,0.47296,4228.3,4228.2,0.4627]
[1754819417743,0.47296,4228.3,4228.2,1.5807]
[1754819418235,0.47294,4228.4,4228.2,0.6445]
[1754819418431,0.7495,4228.7,4228.6,0.6445]
[1754819418631,0.7495,4228.7,4228.6,1.5807]
[1754819418632,1.02,4228.7,4228.6,1.5807]
[1754819418931,1.2729,4228.7,4228.6,1.5807]
[1754819420127,1.2729,4228.7,4228.6,0.9097]
[1754819420728,1.2729,4228.7,4228.6,1.5807]
[1754819422138,1.5296,4228.7,4228.6,1.5807]
[1754819422742,1.5296,4228.7,4228.6,1.1628]
[1754819422941,1.5296,4228.7,4228.6,0.9097]
[1754819424342,1.02,4228.8,4228.7,0.8806]
[1754819424545,1.02,4228.8,4228.7,1.5807]
[1754819424546,1.5296,4228.8,4228.7,1.5807]
[1754819424751,1.5296,4228.8,4228.7,0.7279]
[1754819425045,1.5296,4228.8,4228.7,1.1628]
[1754819425245,1.5296,4228.8,4228.7,1.5807]
[1754819427447,2.13017117,4228.8,4228.7,1.5807]
[1754819427645,2.60307117,4228.8,4228.7,1.5807]
[1754819428045,2.13017117,4228.8,4228.7,1.5807]
[1754819428642,1.87347117,4228.8,4228.7,2.05361]
[1754819429043,1.87347117,4228.8,4228.7,1.5807]
[1754819431548,2.13017117,4228.8,4228.7,1.5807]
[1754819432647,2.13017117,4228.8,4228.7,0.4494]
[1754819433044,0.6164,4228.5,4228.4,1.5807]
[1754819433245,1.5296,4228.5,4228.4,1.5807]
[1754819433450,0.6164,4228.3,4228.2,0.73816]
[1754819433751,1.5296,4228.3,4228.2,2.05366]
[1754819433941,1.5296,4228.3,4228.2,1.5807]
[1754819435151,1.2729,4228.3,4228.2,1.5807]
[1754819435354,2.01975,4228.3,4228.2,1.5807]
[1754819435548,0.634,4228.0,4227.9,1.259]
[1754819435752,1.5972,4228.0,4227.9,0.8855]
[1754819436354,1.5972,4228.0,4227.9,1.2665]
[1754819436652,1.5972,4228.0,4227.9,0.4491]
[1754819437154,1.5972,4228.0,4227.9,1.5291]
[1754819438755,1.5972,4228.0,4227.9,1.0835]
[1754819439142,0.473,4227.9,4227.4,1.08845]
[1754819439348,1.3233,4227.5,4227.4,1.08845]
[1754819439542,1.048,4228.2,4228.1,0.6154]
[1754819439753,1.5972,4228.2,4228.1,1.5291]
[1754819440454,1.3233,4228.2,4228.1,1.5291]
[1754819440655,0.3689,4228.2,4228.1,1.5291]
[1754819440956,3.2078,4228.4,4228.2,0.6154]
[1754819441150,4.5311,4228.4,4228.3,1.5291]
[1754819441352,5.13402251,4228.4,4228.3,1.5291]
[1754819442060,0.97182251,4228.4,4228.3,1.5291]
[1754819442351,1.3233,4228.7,4228.6,1.5291]
[1754819442951,1.5972,4228.7,4228.6,1.5291]
[1754819443349,1.3233,4228.7,4228.6,1.5291]
[1754819444151,0.60292251,4229.0,4228.9,1.5291]
[1754819444350,4.59362251,4229.6,4229.5,1.2665]
[1754819444552,5.13402251,4229.6,4229.5,1.5291]
[1754819445259,3.81072251,4229.6,4229.5,1.5291]
[1754819445453,4.5311,4229.6,4229.5,1.5291]
[1754819445654,5.13402251,4229.6,4229.5,1.5291]
[1754819446761,0.6893,4229.9,4229.5,1.5291]
[1754819447058,0.19195172,4230.0,4229.9,0.9651]
[1754819447059,1.24444893,4230.0,4229.9,0.9651]
[1754819447260,1.24444893,4230.0,4229.9,1.5291]
[1754819447560,0.3689,4230.0,4229.9,1.5291]
[1754819447755,1.0582,4230.0,4229.9,1.5291]
[1754819448153,1.3233,4230.0,4229.9,1.5291]
[1754819450554,1.5972,4230.0,4229.9,1.5291]
[1754819451356,1.5972,4230.0,4229.3,3.2078]
[1754819451562,1.5972,4229.4,4229.3,1.2665]
[1754819452160,0.634,4229.2,4229.1,0.7025]
[1754819452365,1.5972,4229.2,4229.1,0.2701]
[1754819452859,0.4494,4228.9,4228.4,0.179]
[1754819453060,1.3233,4228.6,4228.5,1.5291]
[1754819459863,0.78335292,4229.1,4229.0,2.00198]
[1754819460072,1.3233,4229.1,4229.0,2.00198]
[1754819460467,1.92235292,4229.1,4229.0,2.00198]
[1754819461269,0.3689,4229.1,4229.0,2.00198]
[1754819461774,1.0582,4229.1,4229.0,2.00198]
[1754819461963,2.19625292,4229.6,4229.5,1.62092]
[1754819462460,2.19625292,4229.6,4229.5,2.00192]
[1754819463073,2.19625292,4229.6,4229.5,1.5291]
[1754819466169,1.5972,4229.6,4229.5,1.5291]
[1754819467376,2.19642203,4229.6,4229.5,1.5291]
[1754819467864,1.5972,4229.6,4229.5,1.5291]
[1754819469470,2.19670881,4229.6,4229.5,1.5291]
[1754819470271,0.96840881,4229.6,4229.5,1.5291]
[1754819470469,0.273,4230.3,4229.7,0.9389]
[1754819470674,0.273,4230.3,4230.2,1.547]
[1754819471378,3.6207,4230.4,4230.2,2.01974]
[1754819471574,3.6207,4230.4,4230.3,1.547]
[1754819472072,3.2078,4230.4,4230.3,1.547]
[1754819472271,0.77826351,4230.7,4230.6,0.4396]
[1754819472577,3.2078,4230.9,4230.7,1.08079]
[1754819472870,0.1786,4230.8,4230.7,1.08079]
[1754819473071,1.3102,4230.8,4230.7,1.08079]
[1754819473278,1.90986351,4230.8,4230.7,2.01969]
[1754819474577,2.17166351,4230.8,4230.7,1.547]
[1754819475570,2.17166351,4230.8,4230.7,0.8776]
[1754819475770,2.17166351,4230.8,4230.0,0.9389]
[1754819475771,0.6243,4230.4,4230.0,0.9389]
[1754819476073,1.572,4230.2,4230.1,0.8776]
[1754819476283,1.572,4230.2,4230.1,0.7041]
[1754819476581,1.572,4230.2,4230.1,0.2695]
[1754819477779,1.572,4229.9,4229.8,0.8522]
[1754819478176,1.0372,4229.5,4229.4,1.49513]
[1754819478379,1.572,4229.5,4229.4,1.0223]
[1754819478578,1.572,4229.4,4229.3,0.1685]
[1754819478972,1.572,4229.4,4229.3,0.438]
[1754819479476,0.74584,4229.3,4228.9,0.9389]
[1754819479670,1.3102,4229.0,4228.9,1.547]
[1754819480882,1.78302,4229.5,4229.4,1.547]
[1754819481183,1.3102,4229.5,4229.4,1.547]
[1754819482677,0.59966351,4229.6,4229.4,1.547]
[1754819482881,4.518,4229.7,4229.6,1.547]
[1754819483076,5.11766351,4229.7,4229.6,1.547]
[1754819483678,4.16936351,4229.7,4229.6,1.547]
[1754819483982,4.518,4230.2,4230.1,1.547]
[1754819484181,5.11771669,4230.2,4230.1,1.547]
[1754819486280,5.37951669,4230.2,4230.1,1.547]
[1754819487290,4.43181669,4230.2,4230.1,1.547]
[1754819487492,4.518,4230.2,4230.1,1.547]
[1754819487786,5.11771669,4230.2,4230.1,1.547]
[1754819488582,3.80751669,4230.2,4230.1,1.547]
[1754819488777,3.2078,4230.2,4230.1,1.547]
[1754819489288,0.96161669,4230.7,4230.6,0.6081]
[1754819489584,1.90991669,4230.7,4230.6,1.547]
[1754819490387,1.3102,4230.7,4230.6,1.547]
[1754819490579,0.59971669,4230.8,4230.7,1.547]
[1754819490778,1.22401669,4231.3,4231.2,0.6081]
[1754819490973,0.2618,4231.2,4230.6,3.2078]
[1754819491178,0.6243,4230.7,4230.6,1.0223]
[1754819491376,1.572,4230.7,4230.6,1.2775]
[1754819491584,1.3102,4230.7,4230.6,1.2775]
[1754819491788,1.3102,4230.7,4230.6,1.547]
[1754819494790,1.3102,4230.1,4230.0,0.7041]
[1754819494983,1.3102,4230.1,4229.9,3.8772]
[1754819494984,1.572,4230.1,4229.9,3.2078]
[1754819495190,1.572,4230.0,4229.9,3.6458]
[1754819495387,1.572,4230.0,4229.9,4.0854]
[1754819495585,1.572,4230.0,4229.9,4.7377]
[1754819495982,1.07245669,4230.3,4229.9,4.7377]
[1754819496187,1.07245669,4230.3,4230.2,0.6238]
[1754819496188,1.22351669,4230.3,4230.2,0.6238]
[1754819496388,1.22351669,4230.3,4230.2,1.5416]
[1754819496589,0.6238,4230.3,4230.2,1.5416]
[1754819496784,1.3106,4230.3,4230.2,1.5416]
[1754819496988,1.91031669,4230.3,4230.2,1.5416]
[1754819497188,0.59971669,4230.3,4230.2,1.5416]
[1754819497385,3.2078,4230.4,4230.2,0.6238]
[1754819497590,0.6295,4230.6,4230.5,0.6238]
[1754819497790,0.6295,4230.6,4230.5,1.5416]
[1754819498396,1.0415,4230.6,4230.5,1.5416]
[1754819498591,1.57,4230.6,4230.5,0.2655]
[1754819498994,1.3106,4230.6,4230.5,1.5416]
[1754819499492,1.91031669,4230.8,4230.7,1.5416]
[1754819501197,0.6238,4231.8,4231.7,0.5639]
[1754819501401,0.8832,4231.8,4231.7,1.3052]
[1754819501902,1.57,4231.8,4231.7,1.3052]
[1754819503197,0.457,4231.8,4231.7,1.3052]
[1754819503897,1.1187,4232.1,4232.0,0.1691]
[1754819504098,1.57,4232.1,4232.0,0.1691]
[1754819504702,1.57,4232.1,4232.0,1.2294]
[1754819504904,1.57,4232.1,4232.0,1.3052]
[1754819505705,3.2078,4232.2,4232.0,1.3052]
[1754819505905,1.57,4232.1,4232.0,1.3052]
[1754819507707,1.57,4232.1,4232.0,1.1082]
[1754819507907,0.6238,4232.0,4231.9,0.8427]
[1754819508104,0.6238,4232.0,4231.9,1.1082]
[1754819508499,1.57,4232.0,4231.9,1.1082]
[1754819509608,1.57,4232.0,4231.9,0.1691]
[1754819510101,1.57,4232.0,4231.9,0.7082]
[1754819510303,1.57,4232.0,4231.9,1.1082]
[1754819510602,0.8832,4231.5,4231.4,4.38861]
[1754819510808,1.57,4231.5,4231.4,1.77781]
[1754819511597,3.2078,4232.2,4231.4,1.3052]
[1754819511799,1.57,4231.8,4231.7,1.58078]
[1754819512004,1.57,4231.8,4231.7,1.70198]
[1754819512210,1.57,4231.8,4231.7,1.3052]
[1754819516305,0.5342,4232.1,4231.8,0.3867]
[1754819516512,0.6238,4231.9,4231.8,0.9639]
[1754819516708,1.57,4231.9,4231.8,1.2294]
[1754819517306,1.57,4231.9,4231.8,1.3052]
[1754819517613,1.37113,4232.2,4232.1,1.3052]
[1754819517922,2.04253,4232.2,4232.1,1.3052]
[1754819518213,2.04253,4232.2,4232.1,1.2294]
[1754819518410,2.04253,4232.2,4232.1,1.1082]
[1754819518817,2.04253,4232.2,4232.1,0.1691]
[1754819519614,2.04253,4232.2,4232.1,0.4346]
[1754819520610,2.63859832,4232.2,4232.1,0.4346]
[1754819521419,2.04254,4232.0,4231.9,0.1691]
[1754819522115,0.4727,4230.6,4230.1,3.2078]
[1754819522307,1.57,4230.5,4230.4,0.1691]
[1754819522718,2.04275,4230.2,4230.1,0.1691]
[1754819523110,0.47278,4229.9,4229.3,3.2078]
[1754819523316,5.25058,4229.9,4229.8,0.1691]
[1754819525221,4.21478,4229.9,4229.8,0.3333]
[1754819525418,3.68058,4229.9,4229.8,0.3333]
[1754819525808,3.94528,4229.9,4229.8,0.1691]
[1754819526024,5.22708,4229.9,4229.8,0.1691]
[1754819527316,5.22708,4229.9,4229.8,0.3331]
[1754819528516,0.47281,4229.7,4229.3,3.2078]
[1754819528825,4.96238,4229.9,4229.8,0.1734]
[1754819529215,5.22708,4229.9,4229.8,0.1734]
[1754819530322,1.08682,4229.5,4229.4,0.1734]
[1754819530524,1.50172,4229.5,4229.4,0.1734]
[1754819531022,2.01932,4229.5,4229.4,0.1734]
[1754819531818,1.5465,4229.5,4229.4,0.3374]
[1754819532014,0.47282,4229.6,4229.4,0.1734]
[1754819532323,0.73752,4229.6,4229.5,0.3374]
[1754819532620,0.5176,4229.6,4229.5,0.3374]
[1754819533625,0.7744,4229.6,4229.5,0.3374]
[1754819533824,1.5465,4229.6,4229.5,0.1734]
[1754819536125,0.47287,4229.1,4229.0,0.1734]
[1754819536423,2.01937,4229.1,4228.5,0.164]
[1754819536631,1.5465,4228.7,4228.6,0.1734]
[1754819537319,1.5465,4228.7,4228.6,0.3374]
[1754819537520,1.1316,4228.7,4228.6,0.3374]
[1754819537717,0.2647,4228.8,4228.6,0.64632]
[1754819538033,1.0289,4228.8,4228.7,0.3374]
[1754819538330,1.2936,4228.8,4228.7,0.1734]
[1754819538626,1.5465,4228.8,4228.7,0.1734]
[1754819540822,0.2647,4228.8,4228.7,0.1734]
[1754819541731,0.5176,4228.8,4228.7,0.3374]
[1754819542433,0.2647,4228.8,4228.7,0.3374]
[1754819542936,0.5176,4228.8,4228.7,0.3374]
[1754819543431,0.7744,4228.8,4228.7,0.3374]
[1754819543730,1.5465,4228.8,4228.7,0.3374]
[1754819544332,0.5176,4228.8,4228.7,0.3374]
[1754819544833,1.5465,4228.8,4228.7,0.3374]
[1754819545025,1.0869,4228.8,4228.7,0.1734]
[1754819545529,1.0289,4228.8,4228.7,0.1734]
[1754819545733,0.9325,4228.7,4228.3,3.68075]
[1754819545936,1.5465,4228.4,4228.3,3.85415]
[1754819546135,1.5465,4228.4,4228.3,0.1734]
[1754819547734,1.08696,4228.4,4227.8,3.3723]
[1754819548033,1.1316,4228.5,4228.4,0.64634]
[1754819548542,1.5465,4228.5,4228.4,0.64634]
[1754819550451,1.1316,4228.5,4228.4,0.81084]
[1754819550738,0.7744,4228.5,4228.4,0.81084]
[1754819552043,1.5465,4228.5,4228.4,0.64634]
[1754819552538,1.5465,4228.5,4228.4,0.47294]
[1754819553137,1.5465,4228.5,4228.4,0.64634]
[1754819553337,0.2647,4228.5,4228.4,0.64634]
[1754819553537,0.2647,4228.5,4228.4,0.81084]
[1754819553732,0.2647,4228.5,4228.4,0.64634]
[1754819554040,0.5176,4228.5,4228.4,0.47294]
[1754819554232,1.5465,4228.5,4228.4,0.47294]
[1754819555244,1.5465,4228.5,4228.4,0.64634]
[1754819555632,1.5465,4228.5,4228.4,0.47294]
[1754819557145,1.5465,4228.5,4228.4,0.65494]
[1754819559344,1.5465,4228.5,4228.4,0.81944]
[1754819560138,1.5465,4228.5,4228.4,0.65494]
[1754819568549,1.5652,4228.4,4228.3,0.47296]
[1754819570250,0.944,4228.4,4227.8,3.2078]
[1754819570449,0.6212,4227.9,4227.8,0.47301]
[1754819570650,0.6212,4227.9,4227.8,0.82891]
[1754819570846,0.6212,4227.9,4227.8,1.18211]
[1754819571048,1.5652,4227.9,4227.8,1.23521]
[1754819571249,1.5652,4227.9,4227.8,1.18211]
[1754819571447,1.5652,4227.9,4227.8,1.09721]
[1754819571644,0.6212,4227.9,4227.7,0.47302]
[1754819571952,0.59774992,4228.3,4227.7,0.47302]
[1754819571953,1.5652,4227.8,4227.7,0.82892]
[1754819573154,1.5652,4227.8,4227.7,1.23522]
[1754819575756,0.722,4228.2,4228.1,1.39968]
[1754819576850,1.1594,4228.2,4228.1,1.39968]
[1754819577044,1.5652,4228.2,4228.1,1.23518]
[1754819578654,1.5652,4228.2,4228.1,1.39968]
[1754819579653,3.2078,4228.4,4228.1,0.227]
[1754819579853,4.5134,4228.4,4228.3,0.7622]
[1754819580360,1.5652,4228.3,4228.2,0.47297]
[1754819582458,1.5652,4228.3,4228.2,0.82887]
[1754819582656,1.5652,4228.3,4228.2,1.23517]
[1754819583055,3.2078,4228.4,4228.2,1.23517]
[1754819583056,3.2078,4228.4,4228.2,1.00817]
[1754819583261,4.1076,4228.4,4228.2,0.47297]
[1754819583461,0.8998,4228.3,4228.2,0.47297]
[1754819583760,1.5652,4228.3,4228.2,0.47297]
[1754819583958,1.5652,4228.3,4228.2,0.91377]
[1754819584162,1.5652,4228.3,4228.2,1.23517]
[1754819584764,3.2078,4228.4,4228.2,1.18207]
[1754819585062,0.2596,4228.3,4228.2,1.39967]
[1754819585565,0.5374,4228.3,4228.2,1.39967]
[1754819585966,1.1593,4228.3,4228.2,1.39967]
[1754819586155,1.5555,4228.3,4228.2,1.39967]
[1754819586355,1.5555,4228.3,4228.2,1.23517]
[1754819589168,1.5457,4228.8,4228.7,1.22231]
[1754819589372,1.5457,4228.8,4228.7,1.38681]
[1754819589563,1.5457,4228.8,4228.7,1.22231]
[1754819594775,1.5457,4228.8,4228.7,0.47291]
[1754819595170,0.6142,4228.5,4228.4,0.47295]
[1754819595371,1.5457,4228.5,4228.4,0.47295]
[1754819596479,1.5457,4228.5,4228.4,0.64685]
[1754819596878,1.5457,4228.5,4228.4,0.47295]
[1754819602776,0.6142,4228.5,4228.3,0.47296]
[1754819602984,1.5457,4228.3,4228.2,0.47297]
[1754819603171,0.9315,4228.2,4228.1,0.47297]
[1754819603371,1.5457,4228.2,4227.3,4.39046]
[1754819603579,0.6142,4227.4,4227.3,4.37717]
[1754819603776,1.5457,4227.4,4227.3,4.43027]
[1754819604177,1.5457,4227.4,4227.3,4.59477]
[1754819604379,0.5353,4227.4,4227.3,4.59477]
[1754819609490,0.7114,4227.4,4227.3,4.59477]
[1754819610091,1.1076,4227.4,4227.3,4.59477]
[1754819610888,1.2769,4227.4,4227.3,4.59477]
[1754819611390,1.5457,4227.4,4227.3,4.59477]
[1754819611586,1.5457,4227.4,4227.3,4.43027]
[1754819615789,1.5457,4227.4,4227.3,26.08127]
[1754819617192,1.5457,4227.4,4227.3,4.43027]
[1754819617492,1.5457,4227.4,4227.3,26.08127]
[1754819619195,1.5457,4227.4,4227.3,26.24597]
[1754819621195,1.5457,4227.4,4227.3,4.59497]
[1754819621400,1.5457,4227.4,4227.3,26.24497]
[1754819623202,1.5457,4227.4,4227.3,26.08027]
[1754819627607,1.5457,4227.4,4227.3,26.24497]
[1754819628705,1.5457,4227.4,4227.3,26.08027]
[1754819635506,1.5457,4227.4,4227.3,4.37717]
[1754819635809,1.5305,4227.3,4227.1,0.47309]
[1754819636004,1.5305,4227.0,4226.9,0.47311]
[1754819636200,1.5305,4227.0,4226.9,22.11911]
[1754819636405,1.5305,4227.0,4226.9,22.11811]
[1754819636716,1.5305,4227.0,4226.8,3.68092]
[1754819636908,0.6161,4227.0,4226.9,21.645]
[1754819637413,1.5305,4227.0,4226.9,21.645]
[1754819638514,1.5305,4227.0,4226.9,21.646]
[1754819638714,1.5305,4226.9,4226.8,3.68092]
[1754819638914,1.5305,4226.9,4226.8,25.32692]
[1754819640408,1.5305,4226.9,4226.8,25.32592]
[1754819640811,2.00362,4226.9,4226.6,0.47315]
[1754819641007,1.08922,4226.9,4226.6,0.47315]
[1754819641317,1.5305,4226.4,4226.3,3.68098]
[1754819641517,1.5305,4226.4,4226.3,25.32698]
[1754819642120,1.5305,4225.8,4225.7,4.43665]
[1754819642619,1.5305,4225.8,4225.7,26.08165]
[1754819642818,1.76236189,4225.8,4225.7,3.68105]
[1754819643019,1.76236189,4225.8,4225.7,22.11825]
[1754819643325,1.5305,4225.7,4225.6,22.11826]
[1754819644008,1.5305,4225.7,4225.6,22.29436]
[1754819646909,1.5305,4225.7,4225.6,22.46896]
[1754819647110,1.5305,4225.7,4225.6,22.79066]
[1754819647420,1.5305,4225.7,4225.6,22.73756]
[1754819649112,0.23186189,4225.8,4225.7,0.227]
[1754819649319,0.1805,4226.2,4226.1,0.5367]
[1754819649516,0.97340999,4226.2,4226.1,22.5753]
[1754819649816,0.617,4226.2,4226.1,23.0485]
[1754819650019,3.2078,4226.3,4226.1,23.0485]
[1754819650321,3.4608,4226.3,4226.2,0.9283]
[1754819650518,4.7166,4226.3,4226.2,0.7637]
[1754819651327,4.95789758,4226.3,4226.2,0.7637]
[1754819652927,1.75009758,4226.3,4226.2,0.9283]
[1754819653323,1.36889758,4226.3,4226.2,0.9283]
[1754819653928,1.75009758,4226.3,4226.2,0.9283]
[1754819654520,0.24129758,4226.3,4226.2,0.7637]
[1754819654720,0.253,4226.6,4226.5,0.5367]
[1754819654917,0.2576,4226.8,4226.6,0.47315]
[1754819655122,1.0723,4227.3,4227.2,1.10568]
[1754819655427,1.2512,4227.3,4227.2,23.20288]
[1754819655631,1.2512,4227.3,4227.2,22.29998]
[1754819656329,1.2512,4227.3,4227.2,22.75118]
[1754819656634,1.2512,4227.3,4227.2,23.20288]
[1754819657127,1.74102946,4227.3,4227.2,23.36748]
[1754819657429,4.7166,4228.0,4227.7,0.75033]
[1754819657623,1.5088,4227.8,4227.7,0.47303]
[1754819658128,1.5088,4227.8,4227.7,1.28743]
[1754819658331,1.5088,4227.8,4227.7,1.55683]
[1754819658527,1.5088,4227.8,4227.7,0.47303]
[1754819660142,1.5088,4227.8,4227.7,1.55683]
[1754819660636,0.87,4227.8,4227.7,1.55683]
[1754819660836,1.5088,4228.5,4228.3,0.47295]
[1754819661037,1.5088,4228.4,4228.3,0.47295]
[1754819661638,1.5088,4228.4,4227.9,21.642]
[1754819661938,1.5088,4228.0,4227.9,0.473]
[1754819662142,4.7166,4228.0,4227.9,0.473]
[1754819662338,1.5088,4227.9,4227.8,0.47301]
[1754819663543,1.98181,4227.9,4227.7,0.47302]
[1754819663844,1.98181,4227.9,4227.4,0.2773]
[1754819663845,1.5088,4227.5,4227.4,0.47305]
[1754819664143,1.5088,4227.5,4227.4,1.78135]
[1754819664452,3.2078,4228.0,4227.4,1.78135]
[1754819664453,1.5088,4227.9,4227.8,1.1056]
[1754819664943,1.5088,4227.9,4227.8,0.9233]
[1754819665141,1.5088,4227.9,4227.0,3.2078]
[1754819665340,0.87,4227.5,4227.3,0.47307]
[1754819665543,1.5088,4227.4,4227.3,0.47307]
[1754819666146,1.5088,4227.4,4226.8,21.639]
[1754819666147,0.617,4227.4,4227.2,0.47308]
[1754819666341,0.6388,4227.2,4227.1,0.87149]
[1754819666546,1.5088,4227.2,4227.1,0.47309]
[1754819667947,1.1276,4227.2,4227.1,1.78139]
[1754819668148,1.5088,4227.2,4227.1,1.78139]
[1754819668939,0.87,4227.2,4227.1,1.78139]
[1754819669144,0.4381,4227.5,4227.4,1.10566]
[1754819669450,1.1276,4227.5,4227.4,1.78136]
[1754819669650,1.5088,4227.5,4227.4,1.78136]
[1754819671152,1.5088,4227.5,4227.4,0.47306]
[1754819671650,1.5088,4227.5,4227.4,0.87146]
[1754819671851,1.5088,4227.5,4227.4,1.14086]
[1754819672850,1.5088,4227.5,4227.4,1.78136]
[1754819673356,1.1276,4227.5,4227.4,1.94596]
[1754819673648,1.5088,4227.5,4227.4,1.78136]
[1754819673843,0.4335,4227.5,4227.4,1.94596]
[1754819674445,1.1276,4227.5,4227.4,1.94596]
[1754819674753,1.5088,4227.5,4227.4,1.94596]
[1754819675156,1.1276,4227.5,4227.4,1.94596]
[1754819676954,1.5087,4227.5,4227.4,1.94596]
[1754819677753,1.5087,4227.5,4227.4,1.78136]
[1754819684657,1.5087,4227.5,4227.4,1.94586]
[1754819685463,1.5087,4227.5,4227.4,1.78136]
[1754819690264,1.5087,4227.5,4227.4,0.47306]
[1754819690859,1.5087,4227.5,4227.1,0.673]
[1754819691054,1.5191,4227.5,4227.4,0.47306]
[1754819693062,1.5191,4227.5,4227.4,1.14606]
[1754819693467,1.5191,4227.5,4227.4,0.86896]
[1754819694169,1.5191,4227.5,4227.4,0.47306]
[1754819697865,1.5191,4227.5,4227.4,0.86896]
[1754819698765,1.5191,4227.5,4227.4,0.47306]